{"text_format":"3","workbook":"xlsx","n_sheets":4,"sheets":["TENDER COVER PAGE","Preamble","Summary","NIDS BILL"],"not_rendered":{"images":2,"defined_names":10},"read":"whole","date_system":"1900"}

{"sheet":"TENDER COVER PAGE","index":0,"n_rows":39,"n_cols":2,"rows_kept":39}
[]
["ESKOM-NTCSA"]
["NETWORK INTRUSION DETECTION SYSTEM(NIDS) & ENDPOINT"]
["DETECTION RESPONSE (EDR) SOLUTION FOR NTCSA OT SYSTEMS"]
[]
["PRICING INFORMATION"]
[]
["ENQUIRY No."]
[]
["NAME OF PACKAGE:","NETWORK INTRUSION DETECTION SYSTEM(NIDS) & ENDPOINT DETECTION RESPONSE(EDR) SLUTION FOR NTCSA OT SYSTEMS"]
[]
["TENDERER’S NAME:  "]
[]
["CATEGORY OF OFFER (MAIN/ALTERNATIVE OFFER):","Main Offer "]
[]
["TENDERED PRICE:  IN ZAR",{"$f":"Summary!E11","v":{"v":0,"d":"  0  RAND"}}]
["(excluding VAT)"]
[]
["RAND VALUE IN WORDS","[Price in Words]"]
["(Including VAT)"]
[]
[]
[]
["TENDERED PRICE:  IN ZAR",{"$f":"Summary!E15","v":{"v":0,"d":"  0  RAND"}}]
["(including VAT)"]
[]
["DATE :"]
[]
[]
[]
["FULL NAMES OF SIGNATORY:"]
[]
[]
[]
["DESIGNATION OF SIGNATORY:"]
[]
[]
[]
["SIGNATURE :"]

{"sheet":"Preamble","index":1,"n_rows":54,"n_cols":2,"rows_kept":54}
[]
[null,"ESKOM-NTCSA"]
[null,"NETWORK INTRUSION DETECTION SYSTEM(NIDS) & ENDPOINT DETECTION"]
[null,"RESPONSE(EDR) SOLUTION FOR NTCSA OT SYSTEMS "]
[]
[null,"Bill of Quantities"]
[]
[null,"PREAMBLES"]
[]
[1,"The Tenderer is advised to read and understand all aspects and documentation associated with this Enquiry BEFORE inserting his Prices and or Rates and or Amounts. "]
[]
[2,"The bill of quantities provides the basis of all  valuations of the work, price adjustment (CPA) and general progress monitoring. "]
[]
[3,"The amount due at each application for payment is based  as measured in terms of the bill of quantities. The Contractor provides all  necessary  information which is required to determine amounts due at each application for payment relative to the completed works"]
[]
[4,"The total of the prices includes for all direct and indirect costs, overheads, profits, on costs, risks, liabilities, obligations, etc. relative to the contract."]
[]
[5,"All values are total values prior to any retention and excludes VAT. Retention is not calculated in the  forecast rate of payment Bill (FRP). "]
[]
[6,"Tenderer to check and take responsibility for all descriptions, formulae and structure of this file."]
[]
[7,"The tenderer is expected to supply, deliver,Commission and install as per the scope of work and according to Eskom-NTCSA requirements"]
[]
[8,"Tempering with this BOQ is strictly prohibited"]
[]
["B","GUIDANCE BEFORE PRICING AND MEASURING "]
[]
["C","METHOD OF MEASUREMENT "]
[]
[null,"Tenderers shall price the items, taking account all of the information within and associated with the tender documents and shall include for all matters, which are at the Contractors risk."]
[]
[null,"All enquiry documents supplied must be considered for pricing the items in the Bills of Quantities for the completion of the works."]
[]
[null,"Unless otherwise stated, items are measured net in accordance with the contract drawings, and no allowance has been made for waste or bulking or compaction or evaporation or loss by any means whatsoever."]
[]
[null,"The quantities contained in the bill of quantities are provisional, and  shall not be used for ordering purposes. No claims whatsoever, however arising will be entertained, should the bill of quantities have been used for ordering and or procurement purposes. "]
[]
["D","RATES AND PRICES"]
[]
[null,"The tenderers must insert prices for all activities and calculate the prices thereof even in the event of a zero (NIL) quantity."]
[]
[null,"Blank/omitted/empty rates will be assumed to be zero (NIL) Rands i.e. R0.00"]
[]
[null,"Rates and Prices shall be expressed to two decimal places (i.e. cents) except in the case of a NIL rate or price."]
[]
[null,"The Tenderers Rates and Prices shall be inserted in the bill of quantities are deemed to be the fully inclusive Rates and Prices to the Employer for the work described under the several items. Such Rates and Prices shall cover all costs and expenses that may be required in, and for the prompt and efficient and safe execution of the work described, and shall cover the cost of all general risks, liabilities and obligations set  forth or implied in this Enquiry document."]
[]
[null,"Rates and Prices for items which are required to be inserted in the bill of quantities by the Tenderer and which have not been duly inserted, are deemed to be covered by other Rates and Prices in the bill of quantities. "]
[]
[null,"The Tenderers omission to insert Rates and Prices shall not be deemed to be a qualified exclusion to execute such work, activity or responsibility."]
[]
[null,"The Rates and Prices are deemed to include (unless otherwise specifically stated in the bill of quantities or herein) all the relevant costs associated with the Clauses of  Contract as amended and shall include but not be limited to the following cost components:"]
[]
[null," The Tenderer is deemed to have obtained all the necessary information required to adequately price the scope of work associated with this Enquiry and no claim shall be considered resulting from lack of knowledge in this respect."]

{"sheet":"Summary","index":2,"n_rows":23,"n_cols":5,"rows_kept":23,"merged":[[5,0,5,3],[8,1,8,2],[9,1,9,2]]}
[]
["ESKOM-NTCSA"]
[{"$f":"Preamble!B3","v":"NETWORK INTRUSION DETECTION SYSTEM(NIDS) & ENDPOINT DETECTION"}]
[{"$f":"Preamble!B4","v":"RESPONSE(EDR) SOLUTION FOR NTCSA OT SYSTEMS "}]
[]
["FINAL SUMMARY"]
[]
["BILL","DESCRIPTION",null,null," AMOUNT"]
[1,"SUPPLY AND DELIVERY OF NIDS",null,null,{"$f":"'NIDS BILL'!F39","v":0}]
[{"$f":"A9+1","v":2},"DEPLOYMENT SEVICES OF NIDS",null,null,{"$f":"'NIDS BILL'!F63","v":0}]
[3,"SUBTOTAL",null,null,{"$f":"SUM(E9:E10)","v":0}]
["ADD","Contingency @ 10% (Solely for the use of the Client, and only on instruction to Contractor)",null,{"$f":"D11*E12","v":0}]
[null,"Subtotal 2",null,{"$f":"SUM(D11:D12)","v":0}]
["ADD","VAT @ 15%",null,null,{"$f":"E11*15%","v":0}]
[null,"TOTAL CARRIED TO FORM OF OFFER",null,null,{"$f":"+E11+E14","v":0}]
[]
[]
[]
["……………………………….............",null,"…………………………………….."]
["SIGNATURE OF TENDERER",null,"DATE"]
[]
[]
["NAME OF TENDERER",null,"DESIGNATION"]

{"sheet":"NIDS BILL","index":3,"n_rows":64,"n_cols":6,"rows_kept":64,"merged":[[1,0,1,1],[63,0,63,4]]}
[]
[{"$f":"Summary!A2","v":"ESKOM-NTCSA"}]
[{"$f":"Summary!A3","v":"NETWORK INTRUSION DETECTION SYSTEM(NIDS) & ENDPOINT DETECTION"}]
[{"$f":"Summary!A4","v":"RESPONSE(EDR) SOLUTION FOR NTCSA OT SYSTEMS "}]
[]
["ITEM","DESCRIPTION","UNIT","QUANTITY","RATE"," AMOUNT"]
[]
[]
[]
[null,"BILL NO. 1 - NETWORK INTRUSION DETECTION SYSTEM (NIDS)"]
[]
[null,"The quantities inserted below are provisional and are based on best information available at the time of compiling these Bills of Quantities and as such, the works shall be subject to remeasurement."]
[]
[]
[null,"SUPPLY, DELIVERY AND INSTALLATION OF HARDWARE,SOFTWARE AND LICENCING INCL. TRAINING"]
[]
[null,"SYSTEM 01 : NIDS SIZING FOR TEMSE"]
[]
[1.1,"Master station console: from where monitoring can be done comprising of main system,neworking equipment that is managed out of band as well as development environment","No.",3,null,{"$f":"D19*E19","v":0}]
[]
[1.2,"Probes ( Probes to monitor 15 segment split over 2 rooms and a standby site.mot of the utilisation is low,so it may be possible to aggregate using switches.Links between the 2 rooms must be fibre)","No.",2,null,{"$f":"D21*E21","v":0}]
[null,"SUBTOTAL SYSTEM 01 : NIDS FOR TEMSE",{"$nulls":3},{"$f":"SUM(F19:F21)","v":0}]
[]
[{"v":2,"d":"2.0"},"SYSTEM 02 : TELECOMMUNICATIONS NIDS SIZING"]
[2.1,"Master station Console ( including a wrkstation) and a development environment","No.",2,null,{"$f":"D25*E25","v":0}]
[2.2,"Probes( for the core infrastructure to monitor systems 2's IP network ( system 2's IP Network is segmented on 43 VRFs and 1000+ VLANs.There are about 842 network devices","No.",26,null,{"$f":"D26*E26","v":0}]
[]
[2.4,"Training ( per group of 10 people)","No.",3,null,{"$f":"D28*E28","v":0}]
[null,"SUBTOTAL SYSTEM 02 : TELECOMMUNICATIONS  NIDS",{"$nulls":3},{"$f":"SUM(F25:F28)","v":0}]
[]
[null,"SYSTEM 03 NIDS : PHYSICAL SECURITY"]
[3.1,"Master station console ( master station including a workstation) and a development environment","No.",2,null,{"$f":"D32*E32","v":0}]
[3.2,"Probes ( for the core infrastructure to monitor system 3's IP network, physical security network traffic will be monitored through the core switches at zero Control and at eMkhiweni (disaster recovery site))","No.",4,null,{"$f":"D33*E33","v":0}]
[null,"SUBTOTAL SYSTEM 03 : NIDS PHYSICAL SECURITY",{"$nulls":3},{"$f":"SUM(F32:F33)","v":0}]
[]
[{"v":3,"d":"3.0"},"Basic service Contract"]
[3.1,"Basic service Contract per device per annum","No.",6,null,{"$f":"D37*E37","v":0}]
[null,"SUBTOTAL BASIC SERVICE CONTRACT",{"$nulls":3},{"$f":"SUM(F37)","v":0}]
[null,"SUBTOTAL SUPPLY AND DELIVERY OF NIDS",{"$nulls":3},{"$f":"F22+F29+F34+F38","v":0}]
[]
[null,"DEPLOYMENT SERVICES FOR: INSTALLATION,CONFIGURATION,COMMISSIONING,MAINTENANCE,SUPPORT & TRAINING"]
[]
[null,"SYSTEM 01 :NIDS SIZING FOR TEMSE"]
[]
[1.1,"Master station console: from where monitoring can be done comprising of main system,neworking equipment that is managed out of band as well as development environment","No.",3,null,{"$f":"D45*E45","v":0}]
[]
[1.2,"Probes ( Probes to monitor 15 segment split over 2 rooms and a standby site.mot of the utilisation is low,so it may be possible to aggregate using switches.Links between the 2 rooms must be fibre)","No.",2,null,0]
[]
[null,{"$f":"B22","v":"SUBTOTAL SYSTEM 01 : NIDS FOR TEMSE"},{"$nulls":3},{"$f":"SUM(F45:F48)","v":0}]
[]
[null,"SYSTEM 02 :TELECOMMUNICATIONS NIDS SIZING"]
[]
[2.1,"Master station Console ( including a wrkstation) and a development environment","No.",2,null,0]
[2.2,"Probes( for the core infrastructure to monitor systems 2's IP network ( system 2's IP Network is segmented on 43 VRFs and 1000+ VLANs.There are about 842 network devices","No.",26,null,0]
[2.3,"Engineering, Installation and Consultancy services","No.",6,null,{"$f":"D55*E55","v":0}]
[null,{"$f":"B29","v":"SUBTOTAL SYSTEM 02 : TELECOMMUNICATIONS  NIDS"},{"$nulls":3},{"$f":"SUM(F53:F55)","v":0}]
[null,"SYSTEM 03 NIDS : PHYSICAL SECURITY"]
[3.1,"Master station console ( master station including a workstation) and a development environment","No.",2,null,{"$f":"D58*E58","v":0}]
[3.2,"Probes ( for the core infrastructure to monitor system 3's IP network, physical security network traffic will be monitored through the core switches at zero Control and at eMkhiweni (disaster recovery site))","No.",4,null,{"$f":"D59*E59","v":0}]
[null,{"$f":"B34","v":"SUBTOTAL SYSTEM 03 : NIDS PHYSICAL SECURITY"},{"$nulls":3},{"$f":"SUM(F58:F59)","v":0}]
[4,"Engineering, Installation and Consultancy services","No.",6,null,{"$f":"D61*E61","v":0}]
[null,"SUBTOTAL ENGINEERING AND CONSULTANCY SERVICES",{"$nulls":3},{"$f":"SUM(F61)","v":0}]
[null,"SUBTOTAL DEPLOYMENT SERVICES FOR NIDS",{"$nulls":3},{"$f":"F49+F56+F60+F62","v":0}]
["Total CARRIED TO FORM OF OFFER",{"$nulls":4},{"$f":"F39+F63","v":0}]